[Event "Titled Tuesday Blitz June 15 2021"]
[White "Kretov, Evgenij"]
[Black "Przybylski, Wojciech"]
[WhiteFideId "4167821"]
[BlackFideId "1117599"]
[WhiteElo "2400"]
[BlackElo "2317"]
[Result "1-0"]
[Round "07"]
[TimeControl "180+1"]
[Date "2021.06.15"]
[WhiteClock "0:01:41"]
[BlackClock "0:00:09"]

1. d4 {[%clk 0:03:00]}  Nf6 {[%clk 0:02:56]} 2. c4 {[%clk 0:03:01]}  e6 {[%clk 0:02:54]} 3. Nc3 {[%clk 0:03:01]}  Bb4 {[%clk 0:02:53]} 4. Bg5 {[%clk 0:03:01]}  h6 {[%clk 0:02:52]} 5. Bh4 {[%clk 0:03:01]}  g5 {[%clk 0:02:52]} 6. Bg3 {[%clk 0:03:01]}  Ne4 {[%clk 0:02:52]} 7. Qc2 {[%clk 0:03:01]}  Bxc3+ {[%clk 0:02:51]} 8. bxc3 {[%clk 0:03:01]}  Nxg3 {[%clk 0:02:51]} 9. hxg3 {[%clk 0:03:00]}  d6 {[%clk 0:02:47]} 10. g4 {[%clk 0:03:00]}  Nd7 {[%clk 0:02:44]} 11. e3 {[%clk 0:03:00]}  b6 {[%clk 0:02:41]} 12. Bd3 {[%clk 0:02:59]}  Bb7 {[%clk 0:02:40]} 13. f3 {[%clk 0:02:58]}  Qe7 {[%clk 0:02:34]} 14. Ne2 {[%clk 0:02:58]}  O-O-O {[%clk 0:02:32]} 15. Kf2 {[%clk 0:02:54]}  e5 {[%clk 0:02:32]} 16. Bf5 {[%clk 0:02:54]}  Kb8 {[%clk 0:02:31]} 17. Ng3 {[%clk 0:02:51]}  Nf8 {[%clk 0:02:26]} 18. a4 {[%clk 0:02:47]}  a5 {[%clk 0:02:25]} 19. Be4 {[%clk 0:02:44]}  Ne6 {[%clk 0:02:22]} 20. Rab1 {[%clk 0:02:42]}  exd4 {[%clk 0:02:09]} 21. cxd4 {[%clk 0:02:41]}  d5 {[%clk 0:02:08]} 22. Nf5 {[%clk 0:02:34]}  Qf6 {[%clk 0:02:05]} 23. cxd5 {[%clk 0:02:28]}  Bxd5 {[%clk 0:01:43]} 24. Rhc1 {[%clk 0:02:27]}  Bxe4 {[%clk 0:01:13]} 25. Qxe4 {[%clk 0:02:27]}  Rd7 {[%clk 0:00:21]} 26. Rc6 {[%clk 0:02:26]}  Rhd8 {[%clk 0:00:19]} 27. d5 {[%clk 0:02:20]}  Rxd5 {[%clk 0:00:18]} 28. Nd4 {[%clk 0:01:48]}  Nc5 {[%clk 0:00:15]} 29. Rxf6 {[%clk 0:01:46]}  Nxe4+ {[%clk 0:00:14]} 30. fxe4 {[%clk 0:01:47]}  Rc5 {[%clk 0:00:13]} 31. Nc6+ {[%clk 0:01:46]}  Kc8 {[%clk 0:00:14]} 32. Nxd8 {[%clk 0:01:47]}  Kxd8 {[%clk 0:00:14]} 33. Rxf7 {[%clk 0:01:47]}  Rc4 {[%clk 0:00:14]} 34. e5 {[%clk 0:01:43]}  Re4 {[%clk 0:00:10]} 35. Rd1+ {[%clk 0:01:42]}  Kc8 {[%clk 0:00:09]} 36. Rdd7 {[%clk 0:01:41]} 1-0


[Site "https://www.chess.com"]

[Event "Titled Tuesday Blitz June 15 2021"]
[White "Krivonosov, Oleg"]
[Black "Rottenwohrer Suarez, Juan"]
[WhiteFideId "11600349"]
[BlackFideId "32068182"]
[WhiteElo "2469"]
[BlackElo "2188"]
[Result "1-0"]
[Round "07"]
[TimeControl "180+1"]
[Date "2021.06.15"]
[WhiteClock "0:00:29"]
[BlackClock "0:00:02"]

1. Nf3 {[%clk 0:03:00]}  Nf6 {[%clk 0:02:59]} 2. c4 {[%clk 0:02:59]}  g6 {[%clk 0:03:00]} 3. Nc3 {[%clk 0:02:59]}  Bg7 {[%clk 0:03:00]} 4. e4 {[%clk 0:02:59]}  c5 {[%clk 0:03:01]} 5. d4 {[%clk 0:02:59]}  cxd4 {[%clk 0:03:00]} 6. Nxd4 {[%clk 0:02:59]}  Nc6 {[%clk 0:03:01]} 7. Be3 {[%clk 0:02:58]}  O-O {[%clk 0:03:01]} 8. Be2 {[%clk 0:02:58]}  d6 {[%clk 0:03:01]} 9. O-O {[%clk 0:02:58]}  Bd7 {[%clk 0:03:02]} 10. Qd2 {[%clk 0:02:56]}  Nxd4 {[%clk 0:03:02]} 11. Bxd4 {[%clk 0:02:57]}  Bc6 {[%clk 0:03:03]} 12. f3 {[%clk 0:02:57]}  a5 {[%clk 0:03:03]} 13. b3 {[%clk 0:02:57]}  Nd7 {[%clk 0:03:04]} 14. Rac1 {[%clk 0:02:56]}  Bxd4+ {[%clk 0:03:02]} 15. Qxd4 {[%clk 0:02:56]}  Qb6 {[%clk 0:03:03]} 16. Qxb6 {[%clk 0:02:55]}  Nxb6 {[%clk 0:03:04]} 17. Nd5 {[%clk 0:02:56]}  Bxd5 {[%clk 0:03:03]} 18. cxd5 {[%clk 0:02:56]}  Rfc8 {[%clk 0:03:02]} 19. Kf2 {[%clk 0:02:56]}  Nd7 {[%clk 0:02:53]} 20. Ke3 {[%clk 0:02:56]}  Nc5 {[%clk 0:02:50]} 21. Rc3 {[%clk 0:02:53]}  Rcb8 {[%clk 0:02:27]} 22. Bb5 {[%clk 0:02:51]}  Kg7 {[%clk 0:02:12]} 23. Rfc1 {[%clk 0:02:50]}  f5 {[%clk 0:02:11]} 24. e5 {[%clk 0:02:45]}  b6 {[%clk 0:01:59]} 25. f4 {[%clk 0:02:44]}  h6 {[%clk 0:01:48]} 26. a3 {[%clk 0:02:37]}  Ra7 {[%clk 0:01:42]} 27. b4 {[%clk 0:02:34]}  axb4 {[%clk 0:01:42]} 28. axb4 {[%clk 0:02:34]}  Ne4 {[%clk 0:01:43]} 29. Rc7 {[%clk 0:02:31]}  Rbb7 {[%clk 0:01:38]} 30. Rxb7 {[%clk 0:02:25]}  Rxb7 {[%clk 0:01:39]} 31. Ra1 {[%clk 0:02:14]}  Rc7 {[%clk 0:01:34]} 32. Bc6 {[%clk 0:02:13]}  g5 {[%clk 0:01:17]} 33. g3 {[%clk 0:02:12]}  e6 {[%clk 0:01:02]} 34. Kd4 {[%clk 0:01:52]}  gxf4 {[%clk 0:00:47]} 35. gxf4 {[%clk 0:01:49]}  dxe5+ {[%clk 0:00:45]} 36. fxe5 {[%clk 0:01:46]}  exd5 {[%clk 0:00:43]} 37. Bxd5 {[%clk 0:01:44]}  Nc3 {[%clk 0:00:37]} 38. Rg1+ {[%clk 0:01:21]}  Kh7 {[%clk 0:00:36]} 39. Bg8+ {[%clk 0:01:17]}  Kh8 {[%clk 0:00:36]} 40. Bc4 {[%clk 0:01:17]}  b5 {[%clk 0:00:28]} 41. Bd3 {[%clk 0:01:15]}  Na2 {[%clk 0:00:24]} 42. e6 {[%clk 0:01:01]}  Nxb4 {[%clk 0:00:23]} 43. Bxf5 {[%clk 0:01:02]}  Nc6+ {[%clk 0:00:13]} 44. Kd5 {[%clk 0:00:53]}  Ne7+ {[%clk 0:00:08]} 45. Kd6 {[%clk 0:00:53]}  Rb7 {[%clk 0:00:08]} 46. Be4 {[%clk 0:00:51]}  Ra7 {[%clk 0:00:07]} 47. Rb1 {[%clk 0:00:45]}  Kg7 {[%clk 0:00:07]} 48. Rf1 {[%clk 0:00:42]}  Ng8 {[%clk 0:00:03]} 49. Ke5 {[%clk 0:00:37]}  b4 {[%clk 0:00:02]} 50. Rg1+ {[%clk 0:00:37]}  Kh8 {[%clk 0:00:02]} 51. Bd5 {[%clk 0:00:34]}  b3 {[%clk 0:00:01]} 52. Rxg8+ {[%clk 0:00:32]}  Kxg8 {[%clk 0:00:01]} 53. e7+ {[%clk 0:00:32]}  Kg7 {[%clk 0:00:01]} 54. e8=Q {[%clk 0:00:32]}  b2 {[%clk 0:00:02]} 55. Qg8# {[%clk 0:00:29]} 1-0


[Site "https://www.chess.com"]

[Event "Titled Tuesday Blitz June 15 2021"]
[White "Levitskiy, Andrey"]
[Black "Willow, Jonah B"]
[WhiteFideId "14132885"]
[BlackFideId "438804"]
[WhiteElo "2323"]
[BlackElo "2261"]
[Result "1/2-1/2"]
[Round "07"]
[TimeControl "180+1"]
[Date "2021.06.15"]
[WhiteClock "0:00:04"]
[BlackClock "0:00:03"]

1. e4 {[%clk 0:02:59]}  c5 {[%clk 0:03:00]} 2. Nf3 {[%clk 0:02:59]}  Nc6 {[%clk 0:03:00]} 3. d4 {[%clk 0:02:58]}  cxd4 {[%clk 0:03:01]} 4. Nxd4 {[%clk 0:02:58]}  g6 {[%clk 0:03:02]} 5. Nc3 {[%clk 0:02:54]}  Bg7 {[%clk 0:03:01]} 6. Be3 {[%clk 0:02:54]}  Nf6 {[%clk 0:03:00]} 7. Bc4 {[%clk 0:02:55]}  O-O {[%clk 0:02:59]} 8. Bb3 {[%clk 0:02:55]}  d6 {[%clk 0:02:59]} 9. f3 {[%clk 0:02:52]}  Bd7 {[%clk 0:02:58]} 10. h4 {[%clk 0:02:52]}  Nxd4 {[%clk 0:02:49]} 11. Bxd4 {[%clk 0:02:51]}  b5 {[%clk 0:02:50]} 12. h5 {[%clk 0:02:27]}  a5 {[%clk 0:02:39]} 13. hxg6 {[%clk 0:02:20]}  hxg6 {[%clk 0:02:37]} 14. a4 {[%clk 0:02:16]}  bxa4 {[%clk 0:02:33]} 15. Nxa4 {[%clk 0:02:08]}  Rb8 {[%clk 0:02:26]} 16. Qd2 {[%clk 0:02:01]}  Qc7 {[%clk 0:02:25]} 17. Qg5 {[%clk 0:01:49]}  Bxa4 {[%clk 0:01:31]} 18. Rxa4 {[%clk 0:01:39]}  Rfc8 {[%clk 0:01:24]} 19. Bxf6 {[%clk 0:01:28]}  exf6 {[%clk 0:01:25]} 20. Qd5 {[%clk 0:00:59]}  f5 {[%clk 0:01:19]} 21. Rc4 {[%clk 0:00:55]}  Qe7 {[%clk 0:01:17]} 22. Rxc8+ {[%clk 0:00:42]}  Rxc8 {[%clk 0:01:18]} 23. Kd1 {[%clk 0:00:37]}  fxe4 {[%clk 0:01:19]} 24. Re1 {[%clk 0:00:32]}  e3 {[%clk 0:01:15]} 25. Qd3 {[%clk 0:00:20]}  Qg5 {[%clk 0:00:32]} 26. Re2 {[%clk 0:00:11]}  Re8 {[%clk 0:00:30]} 27. Kc1 {[%clk 0:00:07]}  Qf6 {[%clk 0:00:17]} 28. c3 {[%clk 0:00:04]}  Rb8 {[%clk 0:00:16]} 29. Qc4 {[%clk 0:00:04]}  Bh6 {[%clk 0:00:14]} 30. Kb1 {[%clk 0:00:04]}  Qf5+ {[%clk 0:00:14]} 31. Ka2 {[%clk 0:00:04]}  Kg7 {[%clk 0:00:13]} 32. Qd4+ {[%clk 0:00:03]}  Qf6 {[%clk 0:00:12]} 33. Qc4 {[%clk 0:00:04]}  Qe5 {[%clk 0:00:11]} 34. Re1 {[%clk 0:00:04]}  Qf6 {[%clk 0:00:11]} 35. Re2 {[%clk 0:00:05]}  Bf4 {[%clk 0:00:12]} 36. g4 {[%clk 0:00:05]}  Bg5 {[%clk 0:00:11]} 37. Qd5 {[%clk 0:00:05]}  a4 {[%clk 0:00:11]} 38. Bxa4 {[%clk 0:00:05]}  Bf4 {[%clk 0:00:11]} 39. Bb3 {[%clk 0:00:06]}  Rb6 {[%clk 0:00:11]} 40. Bc4 {[%clk 0:00:06]}  Be5 {[%clk 0:00:11]} 41. Kb1 {[%clk 0:00:05]}  Bxc3 {[%clk 0:00:11]} 42. b3 {[%clk 0:00:04]}  Bd2 {[%clk 0:00:10]} 43. Kc2 {[%clk 0:00:04]}  Qc3+ {[%clk 0:00:09]} 44. Kb1 {[%clk 0:00:04]}  Qf6 {[%clk 0:00:08]} 45. g5 {[%clk 0:00:03]}  Qe7 {[%clk 0:00:07]} 46. Qd4+ {[%clk 0:00:04]}  Kg8 {[%clk 0:00:08]} 47. Qxb6 {[%clk 0:00:04]}  Qe5 {[%clk 0:00:09]} 48. Qb8+ {[%clk 0:00:03]}  Kg7 {[%clk 0:00:09]} 49. Qd8 {[%clk 0:00:03]}  Qf5+ {[%clk 0:00:09]} 50. Ka2 {[%clk 0:00:02]}  Qc2+ {[%clk 0:00:09]} 51. Ka3 {[%clk 0:00:02]}  Qc1+ {[%clk 0:00:04]} 52. Ka4 {[%clk 0:00:02]}  Qa1+ {[%clk 0:00:04]} 53. Kb5 {[%clk 0:00:02]}  Bc3 {[%clk 0:00:04]} 54. Kc6 {[%clk 0:00:02]}  Be5 {[%clk 0:00:03]} 55. Qd7 {[%clk 0:00:02]}  Qa8+ {[%clk 0:00:04]} 56. Kc7 {[%clk 0:00:03]}  d5+ {[%clk 0:00:03]} 57. Kb6 {[%clk 0:00:02]}  dxc4 {[%clk 0:00:03]} 58. Qb7 {[%clk 0:00:03]}  Qd8+ {[%clk 0:00:04]} 59. Ka6 {[%clk 0:00:03]}  cxb3 {[%clk 0:00:03]} 60. Qb5 {[%clk 0:00:03]}  Qd4 {[%clk 0:00:03]} 61. Re1 {[%clk 0:00:02]}  b2 {[%clk 0:00:03]} 62. Re2 {[%clk 0:00:02]}  Qc3 {[%clk 0:00:03]} 63. f4 {[%clk 0:00:03]}  Bxf4 {[%clk 0:00:03]} 64. Rxb2 {[%clk 0:00:03]}  Qa3+ {[%clk 0:00:02]} 65. Kb7 {[%clk 0:00:03]}  e2 {[%clk 0:00:02]} 66. Rxe2 {[%clk 0:00:03]}  Qa1 {[%clk 0:00:03]} 67. Qb2+ {[%clk 0:00:02]}  Qxb2+ {[%clk 0:00:03]} 68. Rxb2 {[%clk 0:00:03]}  Bxg5 {[%clk 0:00:04]} 69. Rg2 {[%clk 0:00:03]}  Bf4 {[%clk 0:00:04]} 70. Kc6 {[%clk 0:00:04]}  f5 {[%clk 0:00:05]} 71. Kd5 {[%clk 0:00:05]}  Kf6 {[%clk 0:00:05]} 72. Ra2 {[%clk 0:00:05]}  Kg5 {[%clk 0:00:05]} 73. Rg2+ {[%clk 0:00:05]}  Kf6 {[%clk 0:00:05]} 74. Ra2 {[%clk 0:00:05]}  Bc1 {[%clk 0:00:05]} 75. Ra6+ {[%clk 0:00:05]}  Kg5 {[%clk 0:00:06]} 76. Ke6 {[%clk 0:00:06]}  Kf4 {[%clk 0:00:04]} 77. Ra4+ {[%clk 0:00:04]}  Kg3 {[%clk 0:00:03]} 78. Kf6 {[%clk 0:00:04]}  f4 {[%clk 0:00:03]} 79. Rxf4 {[%clk 0:00:04]}  Kxf4 {[%clk 0:00:03]} 80. Kxg6 {[%clk 0:00:04]} 1/2-1/2


[Site "https://www.chess.com"]

[Event "Titled Tuesday Blitz June 15 2021"]
[White "Liyanage, Ranindu Dilshan"]
[Black "Hamley, Ryan"]
[WhiteFideId "9915834"]
[BlackFideId "30959497"]
[WhiteElo "1839"]
[BlackElo "2453"]
[Result "1-0"]
[Round "07"]
[TimeControl "180+1"]
[Date "2021.06.15"]
[WhiteClock "0:00:06"]
[BlackClock "0:00:07"]

1. e4 {[%clk 0:03:00]}  c6 {[%clk 0:02:56]} 2. d4 {[%clk 0:03:00]}  d5 {[%clk 0:02:54]} 3. e5 {[%clk 0:03:01]}  Bf5 {[%clk 0:02:53]} 4. h4 {[%clk 0:03:01]}  h5 {[%clk 0:02:50]} 5. Bd3 {[%clk 0:03:00]}  Bxd3 {[%clk 0:02:47]} 6. Qxd3 {[%clk 0:03:01]}  Qa5+ {[%clk 0:02:45]} 7. Nd2 {[%clk 0:02:59]}  Qa6 {[%clk 0:02:45]} 8. e6 {[%clk 0:02:59]}  Qxd3 {[%clk 0:02:43]} 9. exf7+ {[%clk 0:02:58]}  Kxf7 {[%clk 0:02:43]} 10. cxd3 {[%clk 0:02:58]}  Nd7 {[%clk 0:02:43]} 11. Ndf3 {[%clk 0:02:56]}  e6 {[%clk 0:02:41]} 12. Nh3 {[%clk 0:02:53]}  Re8 {[%clk 0:02:38]} 13. Bf4 {[%clk 0:02:49]}  Nh6 {[%clk 0:02:23]} 14. O-O-O {[%clk 0:02:45]}  Nf5 {[%clk 0:02:15]} 15. Rde1 {[%clk 0:02:44]}  c5 {[%clk 0:02:13]} 16. Nhg5+ {[%clk 0:02:37]}  Kf6 {[%clk 0:02:04]} 17. Ne5 {[%clk 0:02:17]}  Nxe5 {[%clk 0:01:47]} 18. dxe5+ {[%clk 0:02:02]}  Kg6 {[%clk 0:01:45]} 19. Reg1 {[%clk 0:01:54]}  Nd4 {[%clk 0:01:39]} 20. Kd2 {[%clk 0:01:50]}  Be7 {[%clk 0:01:39]} 21. Rh3 {[%clk 0:01:38]}  Rhf8 {[%clk 0:01:31]} 22. Be3 {[%clk 0:01:38]}  Bxg5 {[%clk 0:01:29]} 23. hxg5 {[%clk 0:01:17]}  Rf5 {[%clk 0:01:24]} 24. f4 {[%clk 0:01:15]}  Nc6 {[%clk 0:01:20]} 25. g3 {[%clk 0:01:12]}  d4 {[%clk 0:01:15]} 26. Bf2 {[%clk 0:01:11]}  Nxe5 {[%clk 0:01:16]} 27. Rgh1 {[%clk 0:01:10]}  Ng4 {[%clk 0:01:13]} 28. Be1 {[%clk 0:00:58]}  Rh8 {[%clk 0:01:10]} 29. Rh4 {[%clk 0:00:51]}  Rh7 {[%clk 0:01:00]} 30. Kc1 {[%clk 0:00:45]}  e5 {[%clk 0:01:00]} 31. Bd2 {[%clk 0:00:45]}  Nf2 {[%clk 0:00:55]} 32. R1h2 {[%clk 0:00:38]}  Ng4 {[%clk 0:00:38]} 33. Re2 {[%clk 0:00:37]}  Rh8 {[%clk 0:00:36]} 34. Re4 {[%clk 0:00:35]}  Rhf8 {[%clk 0:00:34]} 35. Kc2 {[%clk 0:00:32]}  b5 {[%clk 0:00:30]} 36. b3 {[%clk 0:00:32]}  a6 {[%clk 0:00:29]} 37. Re2 {[%clk 0:00:27]}  Rc8 {[%clk 0:00:26]} 38. Rh1 {[%clk 0:00:25]}  c4 {[%clk 0:00:25]} 39. bxc4 {[%clk 0:00:26]}  bxc4 {[%clk 0:00:26]} 40. dxc4 {[%clk 0:00:26]}  Rxc4+ {[%clk 0:00:26]} 41. Kd3 {[%clk 0:00:27]}  Ra4 {[%clk 0:00:26]} 42. Rb1 {[%clk 0:00:26]}  Ra3+ {[%clk 0:00:25]} 43. Ke4 {[%clk 0:00:26]}  Rf8 {[%clk 0:00:07]} 44. Rb6+ {[%clk 0:00:26]}  Kh7 {[%clk 0:00:06]} 45. fxe5 {[%clk 0:00:26]}  Rxg3 {[%clk 0:00:06]} 46. Bf4 {[%clk 0:00:24]}  Rg1 {[%clk 0:00:05]} 47. e6 {[%clk 0:00:23]}  Rf1 {[%clk 0:00:05]} 48. g6+ {[%clk 0:00:16]}  Kg8 {[%clk 0:00:04]} 49. Bg3 {[%clk 0:00:16]}  Re8 {[%clk 0:00:04]} 50. Kxd4 {[%clk 0:00:15]}  Rf6 {[%clk 0:00:05]} 51. Rxa6 {[%clk 0:00:12]}  Rxg6 {[%clk 0:00:05]} 52. Bh4 {[%clk 0:00:11]}  Nh6 {[%clk 0:00:05]} 53. Ke5 {[%clk 0:00:08]}  Rg4 {[%clk 0:00:05]} 54. Bf2 {[%clk 0:00:06]}  h4 {[%clk 0:00:05]} 55. Re4 {[%clk 0:00:05]}  Rxe4+ {[%clk 0:00:05]} 56. Kxe4 {[%clk 0:00:06]}  Ng4 {[%clk 0:00:05]} 57. Bxh4 {[%clk 0:00:04]}  g6 {[%clk 0:00:05]} 58. Kf4 {[%clk 0:00:04]}  Nh6 {[%clk 0:00:04]} 59. e7 {[%clk 0:00:04]}  Nf5 {[%clk 0:00:05]} 60. Rxg6+ {[%clk 0:00:03]}  Kf7 {[%clk 0:00:05]} 61. Kxf5 {[%clk 0:00:04]}  Rh8 {[%clk 0:00:05]} 62. Rf6+ {[%clk 0:00:03]}  Ke8 {[%clk 0:00:06]} 63. Bg5 {[%clk 0:00:02]}  Rh5 {[%clk 0:00:05]} 64. Kg6 {[%clk 0:00:03]}  Rh8 {[%clk 0:00:05]} 65. Rf8+ {[%clk 0:00:03]}  Rxf8 {[%clk 0:00:05]} 66. exf8=Q+ {[%clk 0:00:03]}  Kxf8 {[%clk 0:00:06]} 67. Kf5 {[%clk 0:00:03]}  Ke8 {[%clk 0:00:07]} 68. Ke6 {[%clk 0:00:04]}  Kf8 {[%clk 0:00:07]} 69. Kd6 {[%clk 0:00:05]}  Ke8 {[%clk 0:00:07]} 70. a4 {[%clk 0:00:06]} 1-0


[Site "https://www.chess.com"]

[Event "Titled Tuesday Blitz June 15 2021"]
[White "Macovei, Andrei"]
[Black "Badelka, Olga"]
[WhiteFideId "13904680"]
[BlackFideId "13509926"]
[WhiteElo "2439"]
[BlackElo "2181"]
[Result "1-0"]
[Round "07"]
[TimeControl "180+1"]
[Date "2021.06.15"]
[WhiteClock "0:01:22"]
[BlackClock "0:00:19"]

1. e4 {[%clk 0:02:53]}  c5 {[%clk 0:02:59]} 2. Nf3 {[%clk 0:02:40]}  Nc6 {[%clk 0:02:54]} 3. Bb5 {[%clk 0:02:39]}  e6 {[%clk 0:02:50]} 4. Bxc6 {[%clk 0:02:38]}  bxc6 {[%clk 0:02:50]} 5. d3 {[%clk 0:02:38]}  Ne7 {[%clk 0:02:47]} 6. h4 {[%clk 0:02:38]}  Qc7 {[%clk 0:02:46]} 7. e5 {[%clk 0:02:35]}  d6 {[%clk 0:02:44]} 8. exd6 {[%clk 0:02:34]}  Qxd6 {[%clk 0:02:42]} 9. Nbd2 {[%clk 0:02:34]}  Nf5 {[%clk 0:02:42]} 10. Ne4 {[%clk 0:02:33]}  Qc7 {[%clk 0:02:38]} 11. g3 {[%clk 0:02:31]}  Be7 {[%clk 0:02:16]} 12. Bf4 {[%clk 0:02:30]}  Qb6 {[%clk 0:02:12]} 13. b3 {[%clk 0:02:29]}  O-O {[%clk 0:02:02]} 14. Kf1 {[%clk 0:02:25]}  c4 {[%clk 0:01:48]} 15. bxc4 {[%clk 0:02:15]}  c5 {[%clk 0:01:48]} 16. Kg2 {[%clk 0:02:05]}  Bb7 {[%clk 0:01:42]} 17. Re1 {[%clk 0:02:05]}  Rad8 {[%clk 0:01:34]} 18. Qe2 {[%clk 0:02:04]}  Nd4 {[%clk 0:01:28]} 19. Nxd4 {[%clk 0:02:05]}  Rxd4 {[%clk 0:01:29]} 20. f3 {[%clk 0:01:58]}  f6 {[%clk 0:01:18]} 21. Rab1 {[%clk 0:01:57]}  Qc6 {[%clk 0:01:05]} 22. Be3 {[%clk 0:01:55]}  f5 {[%clk 0:00:59]} 23. Bxd4 {[%clk 0:01:38]}  fxe4 {[%clk 0:00:53]} 24. Qxe4 {[%clk 0:01:39]}  Ba8 {[%clk 0:00:23]} 25. Qxc6 {[%clk 0:01:26]}  Bxc6 {[%clk 0:00:23]} 26. Be5 {[%clk 0:01:26]}  Rxf3 {[%clk 0:00:19]} 27. Rb8+ {[%clk 0:01:22]}  Kf7 {[%clk 0:00:19]} 28. Rf1 {[%clk 0:01:22]} 1-0


[Site "https://www.chess.com"]

[Event "Titled Tuesday Blitz June 15 2021"]
[White "Maltsevskaya, Aleksandra"]
[Black "Mekhitarian, Krikor Sevag"]
[WhiteFideId "24174041"]
[BlackFideId "2107660"]
[WhiteElo "2225"]
[BlackElo "2598"]
[Result "0-1"]
[Round "07"]
[TimeControl "180+1"]
[Date "2021.06.15"]
[WhiteClock "0:00:01"]
[BlackClock "0:00:05"]

1. e4 {[%clk 0:02:57]}  c5 {[%clk 0:02:59]} 2. Nf3 {[%clk 0:02:57]}  g6 {[%clk 0:02:48]} 3. d4 {[%clk 0:02:55]}  cxd4 {[%clk 0:02:49]} 4. Qxd4 {[%clk 0:02:54]}  Nf6 {[%clk 0:02:48]} 5. e5 {[%clk 0:02:53]}  Nc6 {[%clk 0:02:48]} 6. Qa4 {[%clk 0:02:52]}  Nd5 {[%clk 0:02:47]} 7. Qb3 {[%clk 0:02:43]}  Nc7 {[%clk 0:02:47]} 8. Bc4 {[%clk 0:02:39]}  Ne6 {[%clk 0:02:38]} 9. Bd2 {[%clk 0:02:37]}  Bg7 {[%clk 0:02:37]} 10. O-O {[%clk 0:02:35]}  O-O {[%clk 0:02:27]} 11. Re1 {[%clk 0:02:34]}  Qc7 {[%clk 0:02:27]} 12. Bc3 {[%clk 0:02:18]}  Na5 {[%clk 0:01:51]} 13. Bxa5 {[%clk 0:02:15]}  Qxa5 {[%clk 0:01:52]} 14. Nc3 {[%clk 0:02:14]}  Nc5 {[%clk 0:01:51]} 15. Qb5 {[%clk 0:02:09]}  Qxb5 {[%clk 0:01:49]} 16. Bxb5 {[%clk 0:02:09]}  a6 {[%clk 0:01:32]} 17. Bc4 {[%clk 0:02:09]}  b5 {[%clk 0:01:30]} 18. Bd5 {[%clk 0:02:04]}  Ra7 {[%clk 0:01:26]} 19. b4 {[%clk 0:01:59]}  Ne6 {[%clk 0:01:15]} 20. Bb3 {[%clk 0:01:58]}  Bb7 {[%clk 0:01:05]} 21. Nd5 {[%clk 0:01:54]}  Bxd5 {[%clk 0:01:02]} 22. Bxd5 {[%clk 0:01:55]}  Rc8 {[%clk 0:01:01]} 23. Bb3 {[%clk 0:01:55]}  a5 {[%clk 0:00:58]} 24. bxa5 {[%clk 0:01:55]}  Rxa5 {[%clk 0:00:57]} 25. Rad1 {[%clk 0:01:55]}  Ra7 {[%clk 0:00:57]} 26. Rd5 {[%clk 0:01:54]}  Nc5 {[%clk 0:00:57]} 27. Red1 {[%clk 0:01:54]}  e6 {[%clk 0:00:56]} 28. R5d2 {[%clk 0:01:54]}  h6 {[%clk 0:00:51]} 29. h4 {[%clk 0:01:51]}  Rac7 {[%clk 0:00:49]} 30. Rd4 {[%clk 0:01:49]}  Kf8 {[%clk 0:00:48]} 31. Rb4 {[%clk 0:01:49]}  Rb8 {[%clk 0:00:48]} 32. a4 {[%clk 0:01:43]}  Rcb7 {[%clk 0:00:44]} 33. a5 {[%clk 0:01:27]}  Ke7 {[%clk 0:00:43]} 34. Rbd4 {[%clk 0:01:14]}  Ra7 {[%clk 0:00:41]} 35. Ra1 {[%clk 0:01:14]}  Rba8 {[%clk 0:00:41]} 36. Rg4 {[%clk 0:00:46]}  Rxa5 {[%clk 0:00:38]} 37. Rxa5 {[%clk 0:00:45]}  Rxa5 {[%clk 0:00:39]} 38. h5 {[%clk 0:00:46]}  g5 {[%clk 0:00:39]} 39. Rb4 {[%clk 0:00:44]}  Na6 {[%clk 0:00:33]} 40. Re4 {[%clk 0:00:43]}  Ra1+ {[%clk 0:00:26]} 41. Kh2 {[%clk 0:00:43]}  Rb1 {[%clk 0:00:20]} 42. g3 {[%clk 0:00:42]}  Rc1 {[%clk 0:00:12]} 43. Kg2 {[%clk 0:00:41]}  Ra1 {[%clk 0:00:12]} 44. Nd4 {[%clk 0:00:31]}  Nc5 {[%clk 0:00:11]} 45. Re2 {[%clk 0:00:30]}  b4 {[%clk 0:00:12]} 46. Nf3 {[%clk 0:00:27]}  Ra5 {[%clk 0:00:10]} 47. Rd2 {[%clk 0:00:21]}  Nxb3 {[%clk 0:00:10]} 48. cxb3 {[%clk 0:00:21]}  Bxe5 {[%clk 0:00:10]} 49. Rc2 {[%clk 0:00:16]}  Bc3 {[%clk 0:00:10]} 50. Nh2 {[%clk 0:00:17]}  f5 {[%clk 0:00:10]} 51. g4 {[%clk 0:00:11]}  Kf6 {[%clk 0:00:10]} 52. Kf3 {[%clk 0:00:08]}  Ra3 {[%clk 0:00:10]} 53. gxf5 {[%clk 0:00:07]}  exf5 {[%clk 0:00:09]} 54. Nf1 {[%clk 0:00:07]}  Rxb3 {[%clk 0:00:10]} 55. Ne3 {[%clk 0:00:08]}  Bd4 {[%clk 0:00:08]} 56. Ke2 {[%clk 0:00:06]}  Bxe3 {[%clk 0:00:08]} 57. fxe3 {[%clk 0:00:07]}  Rc3 {[%clk 0:00:08]} 58. Rd2 {[%clk 0:00:07]}  Ke6 {[%clk 0:00:07]} 59. Rd4 {[%clk 0:00:08]}  b3 {[%clk 0:00:08]} 60. Rb4 {[%clk 0:00:09]}  d6 {[%clk 0:00:07]} 61. Rb8 {[%clk 0:00:08]}  Rc2+ {[%clk 0:00:08]} 62. Kd3 {[%clk 0:00:09]}  Rh2 {[%clk 0:00:08]} 63. Rxb3 {[%clk 0:00:09]}  Rxh5 {[%clk 0:00:08]} 64. Rb8 {[%clk 0:00:09]}  Rh4 {[%clk 0:00:08]} 65. Rh8 {[%clk 0:00:10]}  Ke5 {[%clk 0:00:07]} 66. Re8+ {[%clk 0:00:10]}  Kd5 {[%clk 0:00:08]} 67. Ke2 {[%clk 0:00:09]}  f4 {[%clk 0:00:08]} 68. Kf3 {[%clk 0:00:05]}  fxe3 {[%clk 0:00:09]} 69. Kxe3 {[%clk 0:00:04]}  Rf4 {[%clk 0:00:08]} 70. Rh8 {[%clk 0:00:03]}  Rf6 {[%clk 0:00:09]} 71. Rg8 {[%clk 0:00:04]}  Ke5 {[%clk 0:00:09]} 72. Ra8 {[%clk 0:00:03]}  Kf5 {[%clk 0:00:09]} 73. Kf3 {[%clk 0:00:03]}  d5 {[%clk 0:00:08]} 74. Kg3 {[%clk 0:00:03]}  h5 {[%clk 0:00:08]} 75. Re8 {[%clk 0:00:04]}  h4+ {[%clk 0:00:08]} 76. Kh3 {[%clk 0:00:04]}  d4 {[%clk 0:00:08]} 77. Rd8 {[%clk 0:00:04]}  Ke4 {[%clk 0:00:09]} 78. Kg4 {[%clk 0:00:05]}  d3 {[%clk 0:00:08]} 79. Kxg5 {[%clk 0:00:05]}  Rf2 {[%clk 0:00:06]} 80. Kxh4 {[%clk 0:00:05]}  Rg2 {[%clk 0:00:04]} 81. Kh3 {[%clk 0:00:05]}  Rg7 {[%clk 0:00:05]} 82. Re8+ {[%clk 0:00:03]}  Kd4 {[%clk 0:00:05]} 83. Re7 {[%clk 0:00:01]}  Rxe7 {[%clk 0:00:05]} 0-1


[Site "https://www.chess.com"]